bitfinex/quotes_ETHUSD_20250523
["timestamp","ask_amount","ask_price","bid_price","bid_amount"]
[1747959349677,3.75956333,2659.9,2659.5,15.115]
[1747959350319,5.3859014,2660.1,2659.5,18.87506914]
[1747959350320,1.6266,2660.1,2659.5,18.87506914]
[1747959350614,3.75941087,2660.0,2659.6,3.7598561]
[1747959350786,3.75932373,2660.1,2659.7,3.75981795]
[1747959350987,9.7591986,2660.2,2659.7,3.75981795]
[1747959351190,5.34616503,2660.4,2659.7,3.75968314]
[1747959351389,5.34616503,2660.4,2659.7,19.98268314]
[1747959351596,1.5872,2660.4,2659.7,16.223]
[1747959351805,3.75960569,2659.9,2659.8,26.382]
[1747959351978,3.75968117,2659.8,2659.7,16.223]
[1747959352182,4.13552282,2659.9,2659.7,31.339]
[1747959352183,3.75956225,2659.9,2659.7,31.339]
[1747959352378,3.75968117,2659.8,2659.7,31.339]
[1747959353025,3.75968117,2659.8,2659.7,16.223]
[1747959353227,4.30968117,2659.8,2659.7,16.223]
[1747959353526,5.27032551,2659.8,2659.7,16.223]
[1747959354026,0.96064434,2659.8,2659.7,16.223]
[1747959354324,3.75960072,2659.9,2659.7,16.223]
[1747959354477,3.75968117,2659.8,2659.7,16.223]
[1747959355625,5.33608117,2659.8,2659.7,16.223]
[1747959355800,6.24564558,2659.8,2659.7,16.223]
[1747959356401,6.79564558,2659.8,2659.7,16.223]
[1747959356731,3.75982253,2659.7,2659.6,15.116]
[1747959356886,3.76027566,2659.4,2659.2,11.266]
[1747959357085,3.76027566,2659.4,2659.3,15.116]
[1747959357487,3.76017744,2659.5,2659.3,15.116]
[1747959357787,3.76024667,2659.4,2659.3,15.116]
[1747959358024,1.00052085,2659.7,2659.3,15.116]
[1747959358322,6.0,2659.9,2659.3,15.116]
[1747959358524,6.0,2659.9,2659.4,8.0]
[1747959358725,9.75954939,2659.9,2659.4,3.76021837]
[1747959358926,6.0,2659.9,2659.6,3.75995055]
[1747959359142,6.0,2659.9,2659.6,11.266]
[1747959359523,6.0,2659.9,2659.7,0.00151333]
[1747959359700,6.0,2659.9,2659.8,15.116]
[1747959360142,6.0,2659.9,2659.8,15.11751327]
[1747959360317,6.0,2659.9,2659.8,18.87719444]
[1747959360638,6.0,2659.9,2659.8,15.11751327]
[1747959360838,9.75953983,2659.9,2659.8,15.11751327]
[1747959360996,5.11143578,2659.9,2659.8,15.11751327]
[1747959361198,9.75915722,2660.2,2659.8,15.11751327]
[1747959361395,6.0,2660.2,2659.8,15.11751327]
[1747959361796,3.75939593,2660.1,2659.8,15.116]
[1747959361999,3.75978694,2659.8,2659.3,3.76032246]
[1747959362198,6.0,2660.2,2658.9,16.223]
[1747959362199,0.55,2660.0,2658.9,16.223]
[1747959362425,3.76005028,2659.6,2659.0,34.382]
[1747959362641,3.76005028,2659.6,2659.2,8.0]
[1747959362943,3.76005028,2659.6,2659.1,3.7606709]
[1747959362944,5.26091058,2659.8,2658.9,16.223]
[1747959363101,4.28601522,2659.7,2659.4,8.0]
[1747959363560,0.52610015,2659.7,2659.4,8.0]
[1747959363715,3.75955877,2659.9,2659.4,8.0]
[1747959364067,9.75915162,2660.2,2659.4,8.0]
[1747959364212,3.75901288,2660.3,2659.8,11.75960351]
[1747959364413,3.75903168,2660.3,2659.9,26.382]
[1747959364619,1.5012,2660.4,2659.9,26.382]
[1747959364828,3.75936724,2660.1,2659.9,26.382]
[1747959365028,3.75961493,2659.9,2659.8,15.116]
[1747959365346,3.75976006,2659.8,2659.7,15.116]
[1747959365927,5.35376006,2659.8,2659.7,15.116]
[1747959366126,5.90376006,2659.8,2659.7,15.116]
[1747959367645,5.90376006,2659.8,2659.7,15.11751333]
[1747959367845,5.35376006,2659.8,2659.7,15.11751333]
[1747959369376,6.26509086,2659.8,2659.7,15.11751333]
[1747959370582,6.26509086,2659.8,2659.7,15.116]
[1747959372620,4.67109086,2659.8,2659.7,15.116]
[1747959372981,3.75954795,2659.9,2659.7,15.116]
[1747959372982,3.75961338,2659.9,2659.7,15.116]
[1747959373206,3.75921779,2660.2,2659.8,11.267]
[1747959373426,3.75906914,2660.3,2659.8,15.02658739]
[1747959373629,3.76024667,2659.4,2659.3,15.39699624]
[1747959373805,3.76024667,2659.4,2659.3,23.39699624]
[1747959374033,3.76017228,2659.5,2659.4,8.0]
[1747959374353,5.97514667,2659.4,2659.3,15.022]
[1747959374550,5.97514667,2659.4,2658.1,0.02]
[1747959374551,3.76137816,2658.6,2658.1,0.02]
[1747959374769,3.76194417,2658.2,2658.1,0.02]
[1747959375042,3.80897184,2658.2,2658.1,0.02]
[1747959375196,1.608,2658.5,2658.1,0.02]
[1747959375391,3.76112046,2658.8,2658.2,15.023]
[1747959375392,5.40100288,2658.8,2658.2,15.023]
[1747959375636,2.17990029,2658.8,2658.2,15.023]
[1747959375935,4.31127744,2658.7,2658.2,15.023]
[1747959376263,4.31124555,2658.7,2658.2,15.023]
[1747959376533,1.6398,2658.8,2658.2,15.023]
[1747959376731,3.76167972,2658.4,2658.2,15.023]
[1747959377093,3.76167972,2658.4,2658.1,0.02]
[1747959377296,3.76167972,2658.4,2658.2,15.023]
[1747959377535,3.76180265,2658.3,2658.2,23.023]
[1747959378232,3.76130127,2658.7,2658.2,23.025]
[1747959378397,3.76130127,2658.7,2658.2,26.78691668]
[1747959378597,5.40095882,2658.8,2658.3,3.76177229]
[1747959378812,6.31710051,2658.8,2658.3,3.76177229]
[1747959379006,2.55598142,2658.8,2658.4,3.76165912]
[1747959379343,1.6398,2658.8,2658.2,23.025]
[1747959379639,1.6398,2658.8,2658.2,26.78686887]
[1747959379813,3.76126674,2658.7,2658.2,23.025]
[1747959380009,3.76141992,2658.6,2658.2,23.025]
[1747959380218,5.40092303,2658.8,2658.2,23.025]
[1747959380219,3.76158304,2658.5,2658.2,23.025]
[1747959380410,3.76138629,2658.6,2658.2,23.025]
[1747959380615,3.76130015,2658.7,2658.2,23.025]
[1747959380844,3.76130015,2658.7,2658.2,26.78693688]
[1747959381057,5.40090212,2658.8,2658.2,23.025]
[1747959381260,5.40090212,2658.8,2658.2,26.78681381]
[1747959381261,0.54009021,2658.7,2658.2,26.78681381]
[1747959381419,5.4009802,2658.8,2658.3,3.7617974]
[1747959381618,3.76128914,2658.7,2658.2,23.025]
[1747959381820,1.6398,2658.8,2658.3,11.76167421]
[1747959382042,3.76103049,2658.9,2658.4,3.76157526]
[1747959382362,3.76103049,2658.9,2658.3,8.0]
[1747959382363,3.76139805,2658.6,2658.3,8.0]
[1747959382657,0.95776984,2658.9,2658.3,8.0]
[1747959382658,3.76159803,2658.5,2658.3,8.0]
[1747959382863,3.76145152,2658.6,2658.3,8.0]
[1747959383231,3.76145152,2658.6,2658.4,0.00151407]
[1747959383445,5.43683987,2658.5,2658.4,0.00151407]
[1747959383652,5.98683987,2658.5,2658.4,15.02751407]
[1747959383963,3.76137816,2658.6,2658.4,15.02751407]
[1747959384118,4.71884755,2658.9,2658.4,18.78915794]
[1747959384320,5.3834187,2659.0,2658.4,15.02751407]
[1747959384635,3.7611189,2658.8,2658.4,15.02751407]
[1747959384831,3.7612705,2658.7,2658.4,15.02751407]
[1747959385031,5.38346051,2659.0,2658.4,15.02751407]
[1747959385236,3.7610781,2658.9,2658.4,15.02751407]
[1747959385566,5.38346051,2659.0,2658.5,3.76150336]
[1747959385567,5.38346239,2659.0,2658.5,3.76150336]
[1747959385732,1.6226,2659.0,2658.4,15.02751407]
[1747959385943,5.38344097,2659.0,2658.6,0.00151396]
[1747959386257,3.76110929,2658.8,2658.6,0.00151396]
[1747959386462,3.76110929,2658.8,2658.4,15.026]
[1747959386833,0.55,2658.9,2658.4,15.026]
[1747959387032,0.55,2658.9,2658.4,23.026]
[1747959387033,3.76151965,2658.5,2658.4,23.026]
[1747959387234,6.03691134,2658.5,2658.4,15.026]
[1747959387463,6.58691134,2658.5,2658.4,15.026]
[1747959387840,3.76194417,2658.2,2658.1,0.02]
[1747959388164,3.76194417,2658.2,2658.1,15.047]
[1747959388457,6.95258686,2658.2,2658.1,0.02]
[1747959388765,6.99961905,2658.2,2658.1,0.02]
[1747959388969,12.99961905,2658.2,2658.1,0.02]
[1747959389266,12.95258686,2658.2,2658.1,0.02]
[1747959389763,12.40258686,2658.2,2658.1,0.02]
[1747959389966,11.27404417,2658.2,2658.1,0.02]
[1747959392039,7.5121,2658.2,2658.1,0.02]
[1747959392241,6.0,2658.2,2658.1,0.02]
[1747959392435,6.0,2658.8,2658.2,3.76194417]
[1747959392634,5.30752501,2658.9,2658.4,3.76159388]
[1747959392834,3.76137816,2658.6,2658.5,15.03]
[1747959393041,3.76181258,2658.3,2658.2,11.272]
[1747959393244,3.76181258,2658.3,2658.2,26.302]
[1747959393484,3.76181258,2658.3,2658.1,16.252]
[1747959393485,3.76180265,2658.3,2658.1,16.252]
[1747959393669,3.76194417,2658.2,2658.1,16.252]
[1747959393875,1.6638,2658.4,2658.1,31.282]
[1747959394056,9.76159376,2658.5,2658.1,31.282]
[1747959394431,9.76153312,2658.5,2658.1,31.282]
[1747959394631,3.7618092,2658.3,2658.1,31.282]
[1747959394858,10.95906643,2658.5,2658.1,31.282]
[1747959394859,3.76178522,2658.4,2658.1,31.282]
[1747959395170,7.19753331,2658.5,2658.1,31.282]
[1747959395356,10.95916879,2658.5,2658.1,31.282]
[1747959395556,10.95916879,2658.5,2658.1,35.04405313]
[1747959395557,7.19753331,2658.5,2658.1,35.04405313]
[1747959395788,6.0,2658.5,2658.1,35.04405313]
[1747959396293,3.7614584,2658.6,2658.1,31.282]
[1747959396469,3.7614584,2658.6,2658.1,35.0440123]
[1747959396653,3.76159117,2658.5,2658.1,31.282]
[1747959396858,5.42505966,2658.7,2658.1,31.282]
[1747959397072,3.76144653,2658.6,2658.1,35.04405625]
[1747959397289,7.6426,2659.3,2658.1,31.282]
[1747959397524,7.6426,2659.3,2658.3,3.76166164]
[1747959397828,0.04701085,2659.2,2658.5,8.0]
[1747959398125,3.7606673,2659.2,2658.6,15.159]
[1747959398272,6.0,2659.3,2658.6,15.159]
[1747959398473,6.0,2659.3,2658.9,3.76090063]
[1747959398674,1.6301,2659.5,2659.0,11.273]
[1747959398874,3.76009076,2659.6,2659.1,15.159]
[1747959399126,3.7599639,2659.6,2659.1,15.159]
[1747959399629,6.0,2659.9,2659.1,15.159]
[1747959399792,1.5509,2660.1,2659.2,8.0]
[1747959399988,3.76006142,2659.6,2659.2,8.0]
[1747959400392,3.76016761,2659.5,2659.2,8.0]
[1747959400588,3.76026658,2659.4,2659.3,23.158]
[1747959401112,3.76052948,2659.2,2659.1,24.232]
[1747959401273,3.76052948,2659.2,2659.1,16.232]
[1747959401477,4.31052948,2659.2,2659.1,16.232]
[1747959402522,3.76081233,2659.0,2658.9,15.158]
[1747959402694,4.56794651,2659.0,2658.9,15.158]
[1747959404798,5.42539345,2658.9,2658.5,11.271]
[1747959405131,3.76083642,2659.0,2658.6,15.157]
[1747959405937,3.76110424,2658.8,2658.6,15.157]
[1747959406107,3.76123669,2658.7,2658.6,15.157]
[1747959406433,3.7606709,2659.1,2658.6,15.157]
[1747959406588,3.76096965,2658.9,2658.6,15.157]
[1747959406927,2.0571,2659.2,2658.5,3.76146826]
[1747959406928,3.76085047,2659.0,2658.5,3.76146826]
[1747959407086,3.76088402,2659.0,2658.6,15.157]
[1747959407281,5.81767089,2659.2,2658.6,15.157]
[1747959407485,3.76123669,2658.7,2658.6,15.157]
[1747959407726,3.7611947,2658.8,2658.6,15.157]
[1747959407917,3.76097011,2658.9,2658.6,15.157]
[1747959408928,3.76112226,2658.8,2658.6,15.157]
[1747959409228,3.76123669,2658.7,2658.6,15.157]
[1747959410125,4.51347259,2658.7,2658.6,15.157]
[1747959410330,6.17337259,2658.7,2658.6,15.157]
[1747959411228,9.7611635,2658.8,2658.6,15.157]
[1747959411593,3.76123669,2658.7,2658.6,15.157]
[1747959412131,6.0,2659.3,2658.6,18.91837475]
[1747959412348,3.76081656,2659.0,2658.7,11.271]
[1747959412551,3.76109523,2658.8,2658.7,11.271]
[1747959413267,3.76102464,2658.9,2658.7,11.271]
[1747959413604,3.76109523,2658.8,2658.7,11.271]
[1747959414228,3.76102326,2658.9,2658.7,11.271]
[1747959414425,3.76083216,2659.0,2658.7,11.271]
[1747959415141,3.76109523,2658.8,2658.7,11.271]
[1747959415346,3.76102297,2658.9,2658.7,11.271]
[1747959415844,7.89901247,2659.4,2658.7,11.271]
[1747959416056,11.2832863,2659.4,2658.7,11.271]
[1747959416349,3.76097998,2658.9,2658.7,11.271]
[1747959416533,3.76102012,2658.9,2658.7,11.271]
[1747959417441,3.76096625,2658.9,2658.6,15.157]
[1747959417749,3.76118934,2658.8,2658.7,11.271]
[1747959418043,3.76071566,2659.1,2658.7,11.271]
[1747959418220,3.76072794,2659.1,2658.7,11.271]
[1747959418649,4.31038807,2659.3,2658.7,11.271]
[1747959418950,3.76107799,2658.9,2658.7,11.271]
[1747959420049,3.76109523,2658.8,2658.7,11.271]
[1747959420244,3.76067897,2659.1,2658.7,15.157]
[1747959420445,3.76103854,2658.9,2658.7,15.157]
[1747959420649,3.76174365,2658.4,2658.1,0.39325657]
[1747959420813,3.7615849,2658.5,2658.2,15.157]
[1747959421142,1.6082,2658.8,2658.2,15.157]
[1747959421344,3.76175383,2658.4,2658.2,15.157]
[1747959421553,3.76180265,2658.3,2658.2,15.157]
[1747959421733,0.55,2658.7,2658.2,15.157]
[1747959421935,3.7615917,2658.5,2658.2,15.157]
[1747959422136,3.76168767,2658.4,2658.2,15.157]
[1747959422722,3.76155354,2658.5,2658.2,15.157]
[1747959422917,3.76123669,2658.7,2658.2,15.157]
[1747959423150,3.76148296,2658.6,2658.2,15.157]
[1747959423349,3.76153018,2658.5,2658.2,15.157]
[1747959423552,3.76153018,2658.5,2658.0,8.0]
[1747959423845,3.76142116,2658.6,2658.2,8.0]
[1747959423846,3.76143988,2658.6,2658.2,8.0]
[1747959424143,9.76115732,2658.8,2658.1,3.76194837]
[1747959424352,9.76115732,2658.8,2658.3,3.76174436]
[1747959424548,3.76124864,2658.7,2658.3,3.76174436]
[1747959424749,3.76145086,2658.6,2658.4,11.271]
[1747959424912,3.76124864,2658.7,2658.4,11.271]
[1747959425233,3.76151965,2658.5,2658.4,11.271]
[1747959425440,3.76143862,2658.6,2658.4,26.428]
[1747959425972,6.0,2658.8,2658.4,26.428]
[1747959426124,3.76124098,2658.7,2658.4,26.428]
[1747959426851,6.0,2658.8,2658.4,26.428]
[1747959427052,6.0,2658.8,2658.7,3.76123669]
[1747959427279,1.6012,2659.7,2658.5,8.0]
[1747959427461,3.76032127,2659.4,2658.9,3.76086306]
[1747959427663,3.76015235,2659.5,2659.0,26.428]
[1747959427973,3.76052948,2659.2,2658.7,3.76117282]
[1747959428174,3.76059266,2659.2,2659.0,11.271]
[1747959428379,3.7606709,2659.1,2659.0,11.271]
[1747959429485,3.76030533,2659.4,2659.0,11.271]
[1747959429636,3.76053744,2659.2,2659.0,11.271]
[1747959429832,3.7606709,2659.1,2659.0,11.271]
[1747959432267,3.7606709,2659.1,2658.8,8.0]
[1747959432468,3.7606709,2659.1,2659.0,15.026]
[1747959432668,3.7604799,2659.3,2659.0,15.026]
[1747959432849,3.76059152,2659.2,2659.0,15.026]
[1747959433044,4.13631275,2659.4,2659.0,15.026]
[1747959433246,3.7606709,2659.1,2659.0,15.026]
[1747959433675,5.32059189,2659.2,2659.0,15.026]
[1747959433853,3.7606709,2659.1,2659.0,15.026]
[1747959434374,1.56,2659.2,2658.3,8.0]
[1747959434554,3.76100969,2658.9,2658.8,8.0]
[1747959434738,3.76100969,2658.9,2658.8,23.026]
[1747959435139,3.76100969,2658.9,2658.2,19.99281371]
[1747959435491,3.76133487,2658.7,2658.3,26.296]
[1747959435858,3.76133487,2658.7,2658.4,8.0]
[1747959436074,3.76116099,2658.8,2658.4,8.0]
[1747959436649,3.76117018,2658.8,2658.4,8.0]
[1747959436862,3.76127042,2658.7,2658.4,8.0]
[1747959437366,3.76133596,2658.7,2658.4,8.0]
[1747959437753,3.76151965,2658.5,2658.4,8.0]
[1747959437966,3.76117757,2658.8,2658.4,8.0]
[1747959438283,3.76121597,2658.8,2658.4,8.0]
[1747959438798,3.76123172,2658.8,2658.4,8.0]
[1747959439000,6.0,2659.0,2658.4,8.0]
[1747959439001,3.76139129,2658.6,2658.4,8.0]
[1747959439303,0.6,2658.9,2658.4,8.0]
[1747959439453,4.36100574,2658.9,2658.4,8.0]
[1747959439798,0.6,2658.9,2658.4,8.0]
[1747959440000,3.76145262,2658.6,2658.4,8.0]
[1747959440200,3.76115841,2658.8,2658.4,8.0]
[1747959440368,3.76103775,2658.9,2658.4,11.76155446]
[1747959440571,3.76129736,2658.7,2658.4,8.0]
[1747959440771,3.76151965,2658.5,2658.4,8.0]
[1747959440977,3.76166114,2658.4,2658.3,26.296]
[1747959441165,3.76166114,2658.4,2658.3,15.026]
[1747959441365,3.76166114,2658.4,2658.3,26.296]
[1747959441564,3.76166114,2658.4,2658.3,15.026]
[1747959441792,3.76166114,2658.4,2658.2,16.231]
[1747959441965,3.76163736,2658.5,2658.3,15.027]
[1747959442166,3.76163736,2658.5,2658.4,15.027]
[1747959443495,3.76144563,2658.6,2658.4,15.027]
[1747959443904,0.55,2658.8,2658.5,15.027]
[1747959444060,3.76180265,2658.3,2658.2,24.231]
[1747959444392,3.76180265,2658.3,2658.2,31.258]
[1747959444780,1.5699,2658.4,2658.2,31.258]
[1747959444953,3.76172693,2658.4,2658.2,31.258]
[1747959445358,3.76180265,2658.3,2658.2,31.258]
[1747959446270,4.5141517,2658.3,2658.2,16.231]
[1747959446455,4.5141517,2658.3,2656.9,1.46116954]
[1747959446456,3.76257247,2657.8,2657.3,3.76314879]
[1747959446660,3.76257247,2657.8,2657.6,8.0]
[1747959446855,2.1425,2658.0,2657.5,16.231]
[1747959447057,3.76279349,2657.6,2657.5,16.231]
[1747959447384,5.35543508,2657.5,2657.4,15.029]
[1747959448460,3.76265191,2657.7,2657.4,15.029]
[1747959448660,3.76293508,2657.5,2657.4,15.029]
[1747959450193,4.94568682,2657.7,2657.4,15.029]
[1747959450399,3.76293508,2657.5,2657.4,15.029]
[1747959450873,3.76286816,2657.6,2657.4,15.029]
[1747959451205,3.76293508,2657.5,2657.4,15.029]
[1747959451411,3.762731,2657.7,2657.4,26.302]
[1747959451599,3.76285004,2657.6,2657.4,26.302]
[1747959451911,3.76271676,2657.7,2657.4,26.302]
[1747959452209,3.76282869,2657.6,2657.4,26.302]
[1747959453009,3.76268918,2657.7,2657.4,26.302]
[1747959453213,3.76230232,2658.0,2657.5,3.7628645]
[1747959453609,3.76239377,2657.9,2657.4,30.06499751]
[1747959454316,3.76239377,2657.9,2657.5,3.76291629]
[1747959454516,3.76252309,2657.8,2657.4,26.302]
[1747959454688,2.90268334,2658.1,2657.4,26.302]
[1747959454889,6.66478205,2658.1,2657.5,3.76292535]
[1747959455088,3.76239073,2657.9,2657.4,30.0649968]
[1747959455392,3.76239073,2657.9,2657.5,3.76290721]
[1747959455605,3.76253536,2657.8,2657.4,30.06499594]
[1747959456025,3.76257121,2657.8,2657.4,26.302]
[1747959456301,3.76228346,2658.0,2657.5,3.76283028]
[1747959456508,3.76238406,2657.9,2657.5,3.76283028]
[1747959456701,3.76236878,2657.9,2657.4,30.06503644]
[1747959456919,3.76236878,2657.9,2657.5,3.76293367]
[1747959457216,3.76252579,2657.8,2657.4,26.302]
[1747959457810,3.76293508,2657.5,2657.4,23.029]
[1747959458014,3.76293508,2657.5,2657.4,15.032]
[1747959458394,3.76323886,2657.3,2656.8,3.7638669]
[1747959458715,3.76337904,2657.2,2656.9,15.025]
[1747959458915,3.7631255,2657.4,2656.9,19.17185293]
[1747959459217,3.76344267,2657.2,2656.9,15.40807261]
[1747959459585,3.76308255,2657.4,2657.0,11.275]
[1747959459915,3.76308255,2657.4,2657.0,15.03863213]
[1747959460217,3.76301204,2657.5,2657.1,3.76348297]
[1747959460515,3.76301204,2657.5,2657.0,11.275]
[1747959460516,3.76299056,2657.5,2657.0,11.275]
[1747959460714,3.76328464,2657.3,2657.0,11.275]
[1747959460909,3.76315164,2657.4,2657.0,11.275]
[1747959461503,3.76322254,2657.3,2657.0,11.275]
[1747959461708,1.13352906,2657.5,2657.0,11.275]
[1747959461910,3.76338357,2657.2,2656.7,16.232]
[1747959462109,3.76312245,2657.4,2656.8,3.76391086]
[1747959462313,3.76329176,2657.3,2656.9,26.302]
[1747959462508,3.76335289,2657.3,2656.9,26.302]
[1747959463115,3.76340777,2657.2,2656.9,15.027]
[1747959463318,4.41001566,2657.4,2657.0,11.275]
[1747959463624,5.33518915,2657.6,2657.1,3.76342483]
[1747959463781,3.76295018,2657.5,2657.0,11.275]
[1747959463981,3.76323608,2657.3,2657.0,11.275]
[1747959464281,3.76331373,2657.3,2657.0,11.275]
[1747959464481,3.76346055,2657.2,2657.0,11.275]
[1747959464889,4.29670555,2657.4,2657.0,11.275]
[1747959465088,3.76317568,2657.4,2657.0,11.275]
[1747959465330,3.76323421,2657.3,2657.0,11.275]
[1747959465494,3.76313737,2657.4,2657.0,11.275]
[1747959465695,3.76328825,2657.3,2657.0,11.275]
[1747959466109,3.76314906,2657.4,2657.0,11.275]
[1747959466707,1.5723,2657.6,2657.0,11.275]
[1747959466896,3.76328872,2657.3,2657.0,11.275]
[1747959468030,3.76309257,2657.4,2657.0,11.275]
[1747959468233,3.76329846,2657.3,2657.0,11.275]
[1747959468410,3.76336849,2657.2,2657.0,11.275]
[1747959468739,3.76336849,2657.2,2657.0,11.276]
[1747959469111,3.76328651,2657.3,2657.0,11.276]
[1747959469423,1.5723,2657.6,2657.0,11.276]
[1747959469597,6.09236801,2657.6,2657.0,15.03955284]
[1747959469797,3.76308345,2657.4,2657.0,15.03955284]
[1747959469997,3.76308345,2657.4,2657.0,11.276]
[1747959470326,3.76308345,2657.4,2657.0,15.03962755]
[1747959470528,3.76308345,2657.4,2657.0,11.276]
[1747959470737,3.76332011,2657.3,2657.0,11.276]
[1747959471543,3.76315712,2657.4,2657.0,11.276]
[1747959472035,3.76325112,2657.3,2657.0,11.276]
[1747959472232,1.5723,2657.6,2656.9,15.027]
[1747959472423,3.7634928,2657.2,2656.9,26.303]
[1747959473411,3.7636432,2657.0,2656.9,15.027]
[1747959473631,1.13349765,2657.5,2656.7,16.232]
[1747959473632,3.76392652,2656.8,2656.7,16.232]
[1747959474138,3.76392652,2656.8,2656.7,42.536]
[1747959474620,3.76370367,2657.0,2656.7,42.536]
[1747959474932,3.76385034,2656.9,2656.8,15.028]
[1747959475234,3.76383276,2656.9,2656.8,15.028]
[1747959478002,3.7640523,2656.8,2656.5,27.515]
[1747959478337,3.7640682,2656.7,2656.6,15.029]
[1747959478509,3.76397774,2656.8,2656.6,15.029]
[1747959479239,6.0,2657.0,2656.6,15.029]
[1747959479409,3.7640682,2656.7,2656.6,26.306]
[1747959479936,3.76400409,2656.8,2656.6,26.306]
[1747959480429,5.34760989,2656.6,2656.5,15.03]
[1747959481046,5.89760989,2656.6,2656.5,15.03]
[1747959481235,4.31477674,2656.2,2656.1,0.02]
[1747959481441,5.89087674,2656.2,2656.1,0.02]
[1747959482331,1.5697,2656.4,2656.1,0.02]
[1747959482641,3.76463688,2656.3,2656.1,0.02]
[1747959483110,3.76477674,2656.2,2656.1,0.02]
[1747959483316,3.76470055,2656.3,2656.1,0.02]
[1747959483511,3.76477674,2656.2,2656.1,0.02]
[1747959483735,3.76469301,2656.3,2656.1,0.02]
[1747959483939,3.76477674,2656.2,2656.1,0.02]
[1747959484313,4.78199527,2656.2,2656.1,0.02]
[1747959485357,4.83763306,2656.4,2656.1,0.02]
[1747959485504,3.76456079,2656.4,2656.1,0.02]
[1747959485705,8.58617047,2656.6,2656.1,0.02]
[1747959486002,3.76477674,2656.2,2656.1,0.02]
[1747959486809,5.84527674,2656.2,2656.1,0.02]
[1747959487145,6.80627028,2656.2,2656.1,0.02]
[1747959489822,6.25627028,2656.2,2656.1,0.02]
[1747959490027,5.29527674,2656.2,2656.1,0.02]
[1747959490222,3.76458665,2656.4,2656.1,0.02]
[1747959490435,3.76439645,2656.5,2656.1,0.02]
[1747959490658,3.76452316,2656.4,2656.1,0.02]
[1747959490823,11.34057083,2656.6,2656.1,0.02]
[1747959491143,3.76469156,2656.3,2656.1,0.02]
[1747959491323,3.76443519,2656.5,2656.1,0.02]
[1747959491519,3.76477674,2656.2,2656.1,0.02]
[1747959491724,3.76477674,2656.2,2656.1,15.039]
[1747959492349,5.28997674,2656.2,2656.1,0.02]
[1747959492966,3.76477674,2656.2,2656.1,0.02]
[1747959495565,3.7647162,2656.3,2656.1,0.02]
[1747959495857,3.76477674,2656.2,2656.1,0.02]
[1747959496736,3.76466073,2656.3,2656.1,0.02]
[1747959497260,3.76477674,2656.2,2656.1,0.02]
[1747959497622,3.8118417,2656.2,2656.1,0.02]
[1747959497824,4.3618417,2656.2,2656.1,0.02]
[1747959498022,6.66212698,2656.2,2656.1,0.02]
[1747959498635,12.66212698,2656.2,2656.1,0.02]
[1747959505861,12.11212698,2656.2,2656.1,0.02]
[1747959506065,11.29947674,2656.2,2656.1,0.02]
[1747959506444,6.0,2656.2,2656.1,0.02]
[1747959506845,6.0,2656.5,2656.1,0.02]
[1747959507039,1.6062,2657.0,2656.1,0.02]
[1747959507384,3.76428467,2656.6,2656.1,3.78485364]
[1747959507567,3.76413747,2656.7,2656.2,3.76476117]
[1747959507879,3.76409107,2656.7,2656.2,3.76471951]
[1747959508233,3.76394816,2656.8,2656.3,11.76457657]
[1747959508477,3.76394816,2656.8,2656.1,3.78491119]
[1747959508478,3.76421643,2656.6,2656.4,26.305]
[1747959508679,3.76435159,2656.5,2656.4,26.305]
[1747959509034,3.76421069,2656.6,2656.4,26.305]
[1747959509235,3.76400737,2656.8,2656.4,26.305]
[1747959509439,3.76413583,2656.7,2656.4,26.305]
[1747959510291,3.76398677,2656.8,2656.4,26.305]
[1747959510782,3.76409542,2656.7,2656.4,26.305]
[1747959511885,3.76385257,2656.9,2656.4,30.06947126]
[1747959512088,6.0,2657.1,2656.4,26.305]
[1747959512089,3.76421008,2656.6,2656.4,26.305]
[1747959512387,4.57226879,2657.0,2656.4,26.305]
[1747959512601,6.0,2657.1,2656.5,8.0]
[1747959513402,3.76370979,2657.0,2656.5,11.76428515]
[1747959513555,3.76379321,2656.9,2656.6,15.02]
[1747959513751,6.0,2657.1,2656.6,15.02]
[1747959513752,9.7635658,2657.1,2656.6,30.06520707]
[1747959514170,6.0,2657.1,2656.8,8.0]
[1747959514369,6.0,2657.1,2656.8,11.76381912]
[1747959514596,6.0,2657.1,2657.0,3.7636432]
[1747959514795,6.0,2657.1,2656.8,11.76381912]
[1747959515163,6.0,2657.1,2656.9,3.7637755]
[1747959515702,6.0,2657.1,2657.0,3.7636432]
[1747959516104,3.76279756,2657.6,2657.1,3.76345796]
[1747959516284,3.76270574,2657.7,2657.2,30.06429517]
[1747959516605,3.76287559,2657.6,2657.2,26.301]
[1747959516896,3.76292337,2657.6,2657.2,26.301]
[1747959517399,6.0,2657.8,2657.2,26.301]
[1747959517608,6.0,2657.8,2657.4,3.76307669]
[1747959517758,3.76199482,2658.2,2657.2,42.545]
[1747959517759,3.76201154,2658.2,2657.8,8.0]
[1747959517959,3.76201154,2658.2,2657.9,26.298]
[1747959518260,3.76137816,2658.6,2658.1,3.76207346]
[1747959518463,7.88423001,2658.8,2658.0,8.0]
[1747959518464,1.88423001,2658.8,2658.0,8.0]
[1747959518664,1.88423001,2658.8,2658.5,3.76148668]
[1747959518888,1.88423001,2658.8,2658.6,42.542]
[1747959519195,1.88423001,2658.8,2658.7,3.76123669]
[1747959519398,1.88423001,2658.8,2658.7,11.76123669]
[1747959519771,1.88423001,2658.8,2658.7,8.0]
[1747959520183,1.88423001,2658.8,2658.7,11.76123669]
[1747959520703,0.02,2658.9,2658.8,3.76109523]
[1747959520898,0.02,2658.9,2658.7,11.7611657]
[1747959521067,0.02,2658.9,2658.8,3.76109523]